[Event "GER-ch Youth U12 2020"]
[Site "Willingen"]
[Date "2020.10.28"]
[Round "3.25"]
[White "Detjen, Mattes"]
[Black "Göpfert, Gregor"]
[Result "1/2-1/2"]
[ECO "C45"]
[WhiteElo "1190"]
[BlackElo "1603"]
[Annotator "NA"]
[PlyCount "115"]
[EventDate "2020.10.27"]
[EventType "swiss"]
[EventRounds "7"]
[EventCountry "GER"]
[SourceTitle "playchess.com"]
[Source "ChessBase"]
[SourceQuality "1"]
[TimeControl "40/5400+30:1800+30"]

1. e4 {[%emt 0:00:00]} e5 {[%emt 0:00:00]} 2. Nf3 {[%emt 0:00:00]} Nc6 {[%emt 0:00:00]} 3. d4 {[%emt 0:00:19]} exd4 {[%emt 0:00:01]} 4. Nxd4 {[%emt 0:00:38]} Bc5 {[%emt 0:00:06]} 5. Be3 {[%emt 0:00:50]} Qf6 {[%emt 0:00:12]} 6. c3 {[%emt 0:00:59]} Nge7 {[%emt 0:00:35]} 7. g3 {[%emt 0:01:05]} b6 {[%emt 0:03:42]} 8. Bg2 {[%emt 0:01:06]} Bb7 {[%emt 0:01:05]} 9. O-O {[%emt 0:02:58]} O-O-O {[%emt 0:00:49]} 10. b4 {[%emt 0:01:20]} Bxd4 {[%emt 0:03:58]} 11. Bxd4 {[%emt 0:00:35]} Nxd4 {[%emt 0:01:11]} 12. cxd4 {[%emt 0:01:54]} d5 {[%emt 0:05:00]} 13. e5 {[%emt 0:01:22]} Qe6 {[%emt 0:05:59]} 14. a4 {[%emt 0:00:58]} a6 {[%emt 0:03:53]} 15. Qc1 {[%emt 0:02:17]} Qg4 {[%emt 0:04:52]} 16. Rd1 {[%emt 0:01:32]} h5 {[%emt 0:03:40]} 17. Rd2 {[%emt 0:02:02]} Kb8 {[%emt 0:01:45]} 18. h3 {[%emt 0:02:12]} Qg5 {[%emt 0:01:34]} 19. Ra3 {[%emt 0:01:25]} h4 {[%emt 0:05:14]} 20. g4 {[%emt 0:01:10]} f5 {[%emt 0:04:23]} 21. exf6 {[%emt 0:00:43]} Qxf6 {[%emt 0:00:34]} 22. Rc3 {[%emt 0:03:22]} Rd7 {[%emt 0:01:31]} 23. Rdc2 {[%emt 0:05:26]} Qd6 {[%emt 0:07:14]} 24. b5 {[%emt 0:01:42]} a5 {[%emt 0:01:20]} 25. Nd2 {[%emt 0:01:33]} Ng6 {[%emt 0:01:36]} 26. Nf1 {[%emt 0:04:00]} Nf4 {[%emt 0:03:11]} 27. Ne3 {[%emt 0:01:13]} g6 {[%emt 0:01:42]} 28. Nf1 {[%emt 0:07:08]} Ne6 {[%emt 0:02:14]} 29. Rd3 {[%emt 0:01:18]} Rf7 {[%emt 0:03:13]} 30. Nd2 {[%emt 0:02:45]} Qb4 {[%emt 0:05:56]} 31. Qa3 {[%emt 0:04:45]} Qxa3 {[%emt 0:00:51]} 32. Rxa3 {[%emt 0:00:03]} Nxd4 {[%emt 0:00:37]} 33. Rb2 {[%emt 0:01:14]} Rhf8 {[%emt 0:02:38]} 34. Nb3 {[%emt 0:01:13]} Nxb3 {[%emt 0:01:15]} 35. Raxb3 {[%emt 0:00:06]} Rf4 {[%emt 0:00:54]} 36. Ra3 {[%emt 0:02:03]} Kc8 {[%emt 0:02:16]} 37. Re2 {[%emt 0:01:46]} Kd7 {[%emt 0:02:22]} 38. Kf1 {[%emt 0:00:37]} Kd6 {[%emt 0:03:01]} 39. Ke1 {[%emt 0:00:17]} Bc8 {[%emt 0:05:15]} 40. Raa2 {[%emt 0:00:55]} Rd4 {[%emt 0:01:14]} 41. Red2 {[%emt 0:33:10]} Rff4 {[%emt 0:30:44]} 42. Rxd4 {[%emt 0:01:24]} Rxd4 {[%emt 0:00:18]} 43. Ke2 {[%emt 0:00:10]} Kc5 {[%emt 0:05:33]} 44. Rc2+ {[%emt 0:01:23]} Rc4 {[%emt 0:03:08]} 45. Rxc4+ {[%emt 0:01:46]} Kxc4 {[%emt 0:01:31]} 46. f4 {[%emt 0:00:21]} Be6 {[%emt 0:00:00]} 47. Kf3 {[%emt 0:00:00]} Kb4 {[%emt 0:00:00]} 48. f5 {[%emt 0:00:00]} gxf5 {[%emt 0:00:00]} 49. g5 {[%emt 0:00:00]} Kxa4 {[%emt 0:00:00]} 50. g6 {[%emt 0:00:00]} Kb3 {[%emt 0:00:00]} 51. Kf4 {[%emt 0:00:00]} a4 {[%emt 0:00:00]} 52. Ke5 {[%emt 0:00:00]} Bg8 {[%emt 0:00:00]} 53. Bxd5+ {[%emt 0:00:00]} Bxd5 {[%emt 0:00:00]} 54. Kxd5 {[%emt 0:00:00]} a3 {[%emt 0:00:00]} 55. g7 {[%emt 0:00:00]} a2 {[%emt 0:00:00]} 56. g8=Q a1=Q 57. Kc6+ {[%emt 0:00:00]} Kb4 {[%emt 0:00:00]} 58. Qf8+ {[%emt 0:00:00]} 1/2-1/2

[Event "GER-ch Youth U12 2020"]
[Site "Willingen"]
[Date "2020.10.28"]
[Round "3.26"]
[White "Schneble, Milan"]
[Black "Müller, Mitja"]
[Result "1/2-1/2"]
[ECO "D00"]
[WhiteElo "1418"]
[BlackElo "1360"]
[Annotator "NA"]
[PlyCount "42"]
[EventDate "2020.10.27"]
[EventType "swiss"]
[EventRounds "7"]
[EventCountry "GER"]
[SourceTitle "playchess.com"]
[Source "ChessBase"]
[SourceQuality "1"]
[TimeControl "40/5400+30:1800+30"]

1. d4 {[%emt 0:00:00]} d5 {[%emt 0:00:00]} 2. e3 {[%emt 0:00:00]} Nf6 {[%emt 0:00:13]} 3. c4 {[%emt 0:00:17]} e6 {[%emt 0:00:17]} 4. Nc3 {[%emt 0:00:27]} Nbd7 {[%emt 0:00:31]} 5. Nf3 {[%emt 0:00:48]} b6 {[%emt 0:00:20]} 6. Be2 {[%emt 0:01:48]} Be7 {[%emt 0:00:17]} 7. O-O {[%emt 0:02:16]} O-O {[%emt 0:00:07]} 8. Re1 {[%emt 0:05:04]} c5 {[%emt 0:00:17]} 9. dxc5 {[%emt 0:01:12]} Nxc5 {[%emt 0:01:03]} 10. cxd5 {[%emt 0:03:04]} Nxd5 {[%emt 0:02:54]} 11. Nxd5 {[%emt 0:00:44]} Qxd5 {[%emt 0:01:09]} 12. Nd4 {[%emt 0:02:28]} Bb7 {[%emt 0:07:14]} 13. Bf3 {[%emt 0:00:46]} Qd6 {[%emt 0:01:15]} 14. Bxb7 {[%emt 0:01:23]} Nxb7 {[%emt 0:00:13]} 15. Qf3 {[%emt 0:02:30]} Nc5 {[%emt 0:02:54]} 16. Rd1 {[%emt 0:00:55]} Rfd8 {[%emt 0:00:39]} 17. Bd2 {[%emt 0:01:01]} Rac8 {[%emt 0:03:40]} 18. Bc3 {[%emt 0:01:38]} Qd5 {[%emt 0:05:27]} 19. Qxd5 {[%emt 0:11:02]} Rxd5 {[%emt 0:00:36]} 20. Rac1 {[%emt 0:07:37]} Rcd8 {[%emt 0:01:34]} 21. Rf1 {[%emt 0:03:17]} Rc8 {[%emt 0:10:06]} 1/2-1/2

[Event "GER-ch Youth U12 2020"]
[Site "Willingen"]
[Date "2020.10.28"]
[Round "3.27"]
[White "Ehrlich, Patrick"]
[Black "Ivanov, Alexander"]
[Result "0-1"]
[ECO "A83"]
[WhiteElo "1448"]
[BlackElo "1261"]
[Annotator "NA"]
[PlyCount "108"]
[EventDate "2020.10.27"]
[EventType "swiss"]
[EventRounds "7"]
[EventCountry "GER"]
[SourceTitle "playchess.com"]
[Source "ChessBase"]
[SourceQuality "1"]
[TimeControl "40/5400+30:1800+30"]

1. d4 {[%emt 0:00:00]} f5 {[%emt 0:00:00]} 2. e4 {[%emt 0:00:00]} fxe4 {[%emt 0:00:00]} 3. Nc3 {[%emt 0:00:00]} Nf6 {[%emt 0:00:04]} 4. Bg5 {[%emt 0:00:18]} g6 {[%emt 0:03:57]} 5. Bxf6 {[%emt 0:01:39]} exf6 {[%emt 0:00:06]} 6. Nxe4 {[%emt 0:00:25]} Qe7 {[%emt 0:00:24]} 7. Qe2 {[%emt 0:00:04]} f5 {[%emt 0:00:52]} 8. Nf6+ {[%emt 0:01:18]} Kf7 {[%emt 0:01:08]} 9. Qxe7+ {[%emt 0:00:15]} Bxe7 {[%emt 0:00:24]} 10. Nd5 {[%emt 0:00:16]} Bd6 {[%emt 0:01:10]} 11. O-O-O {[%emt 0:00:41]} Nc6 {[%emt 0:00:33]} 12. Bc4 {[%emt 0:00:20]} Kg7 {[%emt 0:00:43]} 13. Nf3 {[%emt 0:00:47]} Nb4 {[%emt 0:04:41]} 14. Nxb4 {[%emt 0:06:15]} Bxb4 {[%emt 0:00:08]} 15. c3 {[%emt 0:00:46]} Bd6 {[%emt 0:02:26]} 16. h4 {[%emt 0:02:37]} b6 {[%emt 0:00:30]} 17. h5 {[%emt 0:02:23]} Bb7 {[%emt 0:02:01]} 18. d5 {[%emt 0:00:51]} Bf4+ {[%emt 0:04:13]} 19. Kb1 {[%emt 0:00:59]} a6 {[%emt 0:00:37]} 20. g3 {[%emt 0:01:52]} Bd6 {[%emt 0:01:52]} 21. h6+ {[%emt 0:00:04]} Kf6 {[%emt 0:00:46]} 22. a4 {[%emt 0:04:26]} Rhd8 {[%emt 0:02:38]} 23. Rhe1 {[%emt 0:01:08]} Re8 {[%emt 0:02:56]} 24. Rxe8 {[%emt 0:02:43]} Rxe8 {[%emt 0:00:08]} 25. b4 {[%emt 0:00:23]} a5 {[%emt 0:01:28]} 26. b5 {[%emt 0:02:09]} Bc5 {[%emt 0:00:44]} 27. Nd4 {[%emt 0:01:16]} Kg5 {[%emt 0:02:46]} 28. Rh1 {[%emt 0:06:07]} Bxd4 {[%emt 0:00:51]} 29. cxd4 {[%emt 0:00:24]} c6 {[%emt 0:00:30]} 30. dxc6 {[%emt 0:00:29]} dxc6 {[%emt 0:00:15]} 31. Rh4 {[%emt 0:02:16]} Re4 {[%emt 0:01:43]} 32. Rxe4 {[%emt 0:02:06]} fxe4 {[%emt 0:00:11]} 33. Kc2 {[%emt 0:00:11]} cxb5 {[%emt 0:00:50]} 34. Bxb5 {[%emt 0:01:58]} Kg4 {[%emt 0:01:00]} 35. Be2+ {[%emt 0:00:41]} Kh3 {[%emt 0:00:32]} 36. Kd2 {[%emt 0:01:01]} Kg2 {[%emt 0:01:00]} 37. Ke3 {[%emt 0:00:14]} Bc6 {[%emt 0:01:04]} 38. Bb5 {[%emt 0:08:39]} Bxb5 {[%emt 0:02:55]} 39. axb5 {[%emt 0:00:22]} a4 {[%emt 0:00:15]} 40. d5 {[%emt 0:00:06]} a3 {[%emt 0:00:06]} 41. d6 {[%emt 0:30:47]} a2 {[%emt 0:30:21]} 42. d7 {[%emt 0:00:04]} a1=Q 43. d8=Q {[%emt 0:00:13]} Qe1+ {[%emt 0:00:41]} 44. Kf4 {[%emt 0:00:24]} Qxf2+ {[%emt 0:00:15]} 45. Ke5 {[%emt 0:01:52]} Qxg3+ {[%emt 0:00:16]} 46. Kd4 {[%emt 0:01:32]} Qd3+ {[%emt 0:00:14]} 47. Ke5 {[%emt 0:00:36]} Qxd8 {[%emt 0:00:16]} 48. Ke6 {[%emt 0:01:55]} e3 {[%emt 0:00:28]} 49. Kf7 {[%emt 0:00:29]} Qc7+ {[%emt 0:00:17]} 50. Kf6 {[%emt 0:00:32]} e2 {[%emt 0:00:11]} 51. Kg5 {[%emt 0:00:28]} e1=Q 52. Kf6 {[%emt 0:00:28]} Qf4+ {[%emt 0:00:36]} 53. Kg7 {[%emt 0:00:19]} Qe7+ {[%emt 0:00:13]} 54. Kg8 Qff8# 0-1

[Event "GER-ch Youth U12 2020"]
[Site "Willingen"]
[Date "2020.10.28"]
[Round "3.28"]
[White "Schwarz, David"]
[Black "Bondarcuks, Timurs"]
[Result "1-0"]
[ECO "C78"]
[WhiteElo "1200"]
[BlackElo "1198"]
[Annotator "NA"]
[PlyCount "37"]
[EventDate "2020.10.27"]
[EventType "swiss"]
[EventRounds "7"]
[EventCountry "GER"]
[SourceTitle "playchess.com"]
[Source "ChessBase"]
[SourceQuality "1"]
[TimeControl "40/5400+30:1800+30"]

1. e4 {[%emt 0:00:00]} e5 {[%emt 0:00:00]} 2. Nf3 {[%emt 0:00:00]} Nc6 {[%emt 0:00:00]} 3. Bb5 {[%emt 0:00:00]} a6 {[%emt 0:00:00]} 4. Ba4 {[%emt 0:00:02]} Nf6 {[%emt 0:00:54]} 5. O-O {[%emt 0:00:11]} Bc5 {[%emt 0:00:59]} 6. Nxe5 {[%emt 0:05:05]} Bxf2+ {[%emt 0:05:16]} 7. Rxf2 {[%emt 0:00:36]} Nxe5 {[%emt 0:00:18]} 8. d4 {[%emt 0:00:07]} Neg4 {[%emt 0:01:23]} 9. Rf1 {[%emt 0:01:21]} b5 {[%emt 0:01:27]} 10. Bb3 {[%emt 0:00:33]} d6 {[%emt 0:00:18]} 11. Nc3 {[%emt 0:03:57]} O-O {[%emt 0:00:52]} 12. h3 {[%emt 0:01:20]} Nh6 {[%emt 0:01:51]} 13. Bg5 {[%emt 0:02:12]} Qd7 {[%emt 0:03:21]} 14. Bxf6 {[%emt 0:00:42]} gxf6 {[%emt 0:02:08]} 15. Qh5 {[%emt 0:00:22]} Kg7 {[%emt 0:03:09]} 16. Rf3 {[%emt 0:00:49]} Ng8 {[%emt 0:02:35]} 17. Nd5 {[%emt 0:02:41]} Bb7 {[%emt 0:02:36]} 18. Nxf6 {[%emt 0:01:06]} Qe7 {[%emt 0:05:21]} 19. Qxh7# {[%emt 0:00:21]} 1-0

[Event "GER-ch Youth U12 2020"]
[Site "Willingen"]
[Date "2020.10.29"]
[Round "4.3"]
[White "Toth, Luca"]
[Black "Nitsche, Nikolai"]
[Result "0-1"]
[ECO "B03"]
[WhiteElo "1680"]
[BlackElo "1721"]
[Annotator "NA RC"]
[PlyCount "94"]
[EventDate "2020.10.27"]
[EventType "swiss"]
[EventRounds "7"]
[EventCountry "GER"]
[SourceTitle "playchess.com"]
[Source "ChessBase"]
[SourceQuality "1"]
[TimeControl "40/5400+30:1800+30"]

1. e4 {[%emt 0:00:00]} Nf6 {[%emt 0:00:00]} 2. e5 {[%emt 0:00:00]} Nd5 {[%emt 0:00:00]} 3. d4 {[%emt 0:00:00]} d6 {[%emt 0:00:00]} 4. c4 {[%emt 0:00:00]} Nb6 {[%emt 0:00:16]} 5. exd6 {[%emt 0:00:12]} cxd6 {[%emt 0:00:06]} 6. Nc3 {[%emt 0:00:31]} g6 {[%emt 0:00:25]} 7. Be3 {[%emt 0:00:13]} Bg7 {[%emt 0:00:59]} 8. Nf3 {[%emt 0:00:27]} Bf5 {[%emt 0:02:03]} 9. Bd3 {[%emt 0:02:21]} Bxd3 {[%emt 0:01:13]} 10. Qxd3 {[%emt 0:00:07]} Nc6 {[%emt 0:00:38]} 11. a3 {[%emt 0:00:44]} O-O {[%emt 0:00:59]} 12. Rd1 {[%emt 0:05:20]} Rc8 {[%emt 0:04:11]} 13. c5 {[%emt 0:02:09]} dxc5 {[%emt 0:00:27]} 14. dxc5 {[%emt 0:00:06]} Qxd3 {[%emt 0:00:18]} 15. Rxd3 {[%emt 0:00:05]} Nc4 {[%emt 0:00:46]} 16. Nd1 {[%emt 0:18:22]} Rfd8 {[%emt 0:07:03]} 17. Rxd8+ {[%emt 0:03:08]} Rxd8 {[%emt 0:00:06]} 18. Bc1 {[%emt 0:00:21]} N6e5 {[%emt 0:01:43]} 19. Nxe5 {[%emt 0:01:35]} Nxe5 {[%emt 0:00:06]} 20. Ke2 {[%emt 0:04:47]} Nd3 {[%emt 0:08:02]} 21. Be3 {[%emt 0:00:27]} a5 {[%emt 0:02:01]} 22. c6 {[%emt 0:13:28]} bxc6 {[%emt 0:01:16]} 23. Bb6 {[%emt 0:00:14]} Rb8 {[%emt 0:02:22]} 24. Bxa5 {[%emt 0:03:05]} Nxb2 {[%emt 0:00:08]} 25. Nxb2 {[%emt 0:04:38]} Rxb2+ {[%emt 0:00:05]} 26. Bd2 {[%emt 0:07:28]} Bh6 {[%emt 0:00:18]} 27. Rd1 {[%emt 0:00:03]} Ra2 {[%emt 0:00:12]} 28. Ke1 {[%emt 0:00:10]} Bxd2+ {[%emt 0:00:09]} 29. Rxd2 {[%emt 0:00:04]} Rxa3 {[%emt 0:00:05]} 30. Rd8+ {[%emt 0:00:53]} Kg7 {[%emt 0:00:06]} 31. Kd2 {[%emt 0:03:23]} Ra2+ {[%emt 0:00:08]} 32. Ke3 {[%emt 0:00:07]} Rc2 {[%emt 0:00:04]} 33. Rd1 {[%emt 0:01:33]} c5 {[%emt 0:00:14]} 34. g3 {[%emt 0:02:59]} c4 {[%emt 0:02:26]} 35. h4 {[%emt 0:00:41]} h5 {[%emt 0:00:13]} 36. Rd4 {[%emt 0:01:37]} Rc3+ {[%emt 0:02:25]} 37. Kd2 {[%emt 0:00:23]} Rd3+ {[%emt 0:00:38]} 38. Rxd3 {[%emt 0:00:18]} cxd3 {[%emt 0:00:05]} 39. Kxd3 {[%emt 0:00:04]} e5 {[%emt 0:00:59]} 40. Ke4 {[%emt 0:03:22]} Kf6 {[%emt 0:00:10]} 41. Kd5 {[%emt 0:31:30]} Kf5 {[%emt 0:30:32]} 42. f3 {[%emt 0:01:05]} f6 {[%emt 0:00:06]} 43. Kd6 {[%emt 0:10:53]} e4 {[%emt 0:00:28]} 44. fxe4+ {[%emt 0:00:12]} Kxe4 {[%emt 0:00:04]} 45. Ke6 {[%emt 0:00:17]} Kf3 {[%emt 0:00:05]} 46. Kxf6 {[%emt 0:00:13]} Kxg3 {[%emt 0:00:04]} 47. Kg5 {[%emt 0:00:24]} Kh3 {[%emt 0:00:06]} 0-1

[Event "GER-ch Youth U12 2020"]
[Site "Willingen"]
[Date "2020.10.29"]
[Round "4.4"]
[White "Udelnov, Valentin"]
[Black "Navarro Jahnke, Leo"]
[Result "1-0"]
[ECO "B29"]
[WhiteElo "1691"]
[BlackElo "1686"]
[Annotator "NA RC"]
[PlyCount "79"]
[EventDate "2020.10.27"]
[EventType "swiss"]
[EventRounds "7"]
[EventCountry "GER"]
[SourceTitle "playchess.com"]
[Source "ChessBase"]
[SourceQuality "1"]
[TimeControl "40/5400+30:1800+30"]

1. e4 {[%emt 0:00:00]} c5 {[%emt 0:00:00]} 2. Nf3 {[%emt 0:00:00]} Nf6 {[%emt 0:00:00]} 3. e5 {[%emt 0:00:36]} Nd5 {[%emt 0:00:00]} 4. Nc3 {[%emt 0:00:32]} Nxc3 {[%emt 0:00:00]} 5. dxc3 {[%emt 0:00:04]} Nc6 {[%emt 0:00:10]} 6. Bf4 {[%emt 0:00:46]} Qb6 {[%emt 0:00:08]} 7. b3 {[%emt 0:01:34]} Qc7 {[%emt 0:01:18]} 8. Bc4 {[%emt 0:01:47]} e6 {[%emt 0:00:33]} 9. Qe2 {[%emt 0:00:38]} h6 {[%emt 0:00:23]} 10. O-O-O {[%emt 0:00:45]} a6 {[%emt 0:02:44]} 11. Rd2 {[%emt 0:01:58]} b5 {[%emt 0:00:37]} 12. Bd3 {[%emt 0:00:09]} c4 {[%emt 0:01:12]} 13. Be4 {[%emt 0:00:26]} Qa5 {[%emt 0:07:08]} 14. Kd1 {[%emt 0:11:48]} Qxc3 {[%emt 0:03:55]} 15. Ke1 {[%emt 0:00:26]} Bb7 {[%emt 0:09:33]} 16. Kf1 {[%emt 0:02:27]} Na5 {[%emt 0:03:56]} 17. Rd1 {[%emt 0:01:33]} Bxe4 {[%emt 0:03:42]} 18. Qxe4 {[%emt 0:00:06]} Nc6 {[%emt 0:00:26]} 19. g3 {[%emt 0:05:29]} Bc5 {[%emt 0:08:30]} 20. Kg2 {[%emt 0:01:55]} Qb4 {[%emt 0:08:47]} 21. h4 {[%emt 0:05:18]} cxb3 {[%emt 0:00:32]} 22. Qd3 {[%emt 0:00:23]} Rd8 {[%emt 0:03:21]} 23. axb3 {[%emt 0:00:47]} Qa5 {[%emt 0:01:21]} 24. c3 {[%emt 0:04:12]} Qc7 {[%emt 0:08:37]} 25. Rd2 {[%emt 0:05:04]} Ne7 {[%emt 0:04:19]} 26. Ra2 {[%emt 0:04:03]} Qc6 {[%emt 0:04:31]} 27. c4 {[%emt 0:03:06]} b4 {[%emt 0:02:21]} 28. Rha1 {[%emt 0:01:03]} Ra8 {[%emt 0:00:35]} 29. h5 {[%emt 0:02:09]} Nf5 {[%emt 0:02:15]} 30. g4 {[%emt 0:02:38]} Nd4 {[%emt 0:04:06]} 31. Kg3 {[%emt 0:03:10]} Qb6 {[%emt 0:00:57]} 32. Nxd4 {[%emt 0:00:47]} Bxd4 {[%emt 0:00:24]} 33. Rd1 {[%emt 0:00:05]} Bc5 {[%emt 0:01:16]} 34. Qxd7+ {[%emt 0:00:35]} Kf8 {[%emt 0:00:06]} 35. Kf3 {[%emt 0:04:21]} Be7 {[%emt 0:00:41]} 36. Rad2 {[%emt 0:03:38]} f6 {[%emt 0:02:42]} 37. exf6 {[%emt 0:01:01]} gxf6 {[%emt 0:00:12]} 38. Bd6 {[%emt 0:01:30]} Ra7 {[%emt 0:03:51]} 39. Bxe7+ {[%emt 0:00:42]} Kf7 {[%emt 0:00:01]} 40. Bc5+ {[%emt 0:00:12]} 1-0

[Event "GER-ch Youth U12 2020"]
[Site "Willingen"]
[Date "2020.10.29"]
[Round "4.5"]
[White "Krüger, Arthur"]
[Black "Klaska, Philipp Leon"]
[Result "1/2-1/2"]
[ECO "B42"]
[WhiteElo "1704"]
[BlackElo "1716"]
[Annotator "NA RC"]
[PlyCount "57"]
[EventDate "2020.10.27"]
[EventType "swiss"]
[EventRounds "7"]
[EventCountry "GER"]
[SourceTitle "playchess.com"]
[Source "ChessBase"]
[SourceQuality "1"]
[TimeControl "40/5400+30:1800+30"]

1. e4 {[%emt 0:00:00]} c5 {[%emt 0:00:00]} 2. Nf3 {[%emt 0:00:09]} e6 {[%emt 0:00:00]} 3. d4 {[%emt 0:00:07]} cxd4 {[%emt 0:00:00]} 4. Nxd4 {[%emt 0:00:06]} a6 {[%emt 0:00:20]} 5. Bd3 {[%emt 0:00:52]} Qc7 {[%emt 0:00:42]} 6. O-O {[%emt 0:00:58]} Nf6 {[%emt 0:00:32]} 7. Qe2 {[%emt 0:00:21]} d6 {[%emt 0:00:28]} 8. c4 {[%emt 0:01:41]} Nbd7 {[%emt 0:00:35]} 9. Nc3 {[%emt 0:00:35]} b6 {[%emt 0:01:01]} 10. Kh1 {[%emt 0:00:36]} g6 {[%emt 0:06:32]} 11. f4 {[%emt 0:03:29]} Bg7 {[%emt 0:02:23]} 12. Bd2 {[%emt 0:05:23]} O-O {[%emt 0:03:09]} 13. Rae1 {[%emt 0:05:45]} Nc5 {[%emt 0:09:58]} 14. Bc2 {[%emt 0:04:20]} Bb7 {[%emt 0:02:56]} 15. Nf3 {[%emt 0:09:37]} Rfe8 {[%emt 0:22:16]} 16. b4 {[%emt 0:17:39]} Ncd7 {[%emt 0:02:19]} 17. Bd3 {[%emt 0:00:50]} Kh8 {[%emt 0:17:12]} 18. Rb1 {[%emt 0:05:47]} Rac8 {[%emt 0:05:05]} 19. Rfc1 {[%emt 0:01:06]} Ng8 {[%emt 0:04:40]} 20. Nd1 {[%emt 0:03:05]} Ne7 {[%emt 0:01:57]} 21. Bc3 {[%emt 0:01:25]} Nf6 {[%emt 0:02:32]} 22. Nf2 {[%emt 0:01:12]} Qb8 {[%emt 0:02:54]} 23. e5 {[%emt 0:01:58]} Nd7 {[%emt 0:02:17]} 24. exd6 {[%emt 0:01:14]} Qxd6 {[%emt 0:00:32]} 25. Ne5 {[%emt 0:01:55]} Nxe5 {[%emt 0:00:33]} 26. Bxe5 {[%emt 0:06:18]} Bxe5 {[%emt 0:00:50]} 27. fxe5 {[%emt 0:00:24]} Qc7 {[%emt 0:02:34]} 28. c5 {[%emt 0:05:21]} Nd5 {[%emt 0:02:38]} 29. Be4 1/2-1/2

[Event "GER-ch Youth U12 2020"]
[Site "Willingen"]
[Date "2020.10.29"]
[Round "4.6"]
[White "Haubold, Sebastian Marcel"]
[Black "Haubold, Christian Lucas"]
[Result "1-0"]
[ECO "C72"]
[WhiteElo "1769"]
[BlackElo "1615"]
[Annotator "NA RC"]
[PlyCount "79"]
[EventDate "2020.10.27"]
[EventType "swiss"]
[EventRounds "7"]
[EventCountry "GER"]
[SourceTitle "playchess.com"]
[Source "ChessBase"]
[SourceQuality "1"]
[TimeControl "40/5400+30:1800+30"]

1. e4 {[%emt 0:00:00]} e5 {[%emt 0:00:00]} 2. Nf3 {[%emt 0:00:00]} Nc6 {[%emt 0:00:00]} 3. Bb5 {[%emt 0:00:39]} a6 {[%emt 0:00:00]} 4. Ba4 {[%emt 0:00:44]} d6 {[%emt 0:00:00]} 5. O-O {[%emt 0:01:23]} Bg4 {[%emt 0:04:10]} 6. c3 {[%emt 0:01:38]} b5 {[%emt 0:00:41]} 7. Bb3 {[%emt 0:00:05]} Nf6 {[%emt 0:00:19]} 8. Re1 {[%emt 0:01:38]} Be7 {[%emt 0:01:11]} 9. d3 {[%emt 0:04:08]} O-O {[%emt 0:02:02]} 10. Nbd2 {[%emt 0:00:16]} h6 {[%emt 0:07:16]} 11. Nf1 {[%emt 0:00:21]} Bh5 {[%emt 0:03:46]} 12. Ng3 {[%emt 0:00:19]} Bg6 {[%emt 0:05:15]} 13. Nh4 {[%emt 0:07:27]} Bh7 {[%emt 0:04:23]} 14. Nhf5 {[%emt 0:05:03]} Na5 {[%emt 0:06:28]} 15. Bc2 {[%emt 0:06:35]} c5 {[%emt 0:02:50]} 16. f4 {[%emt 0:04:35]} Nc6 {[%emt 0:02:07]} 17. Kh1 {[%emt 0:03:34]} b4 {[%emt 0:05:17]} 18. Qf3 {[%emt 0:06:04]} Kh8 {[%emt 0:03:14]} 19. Ba4 {[%emt 0:04:18]} Na7 {[%emt 0:02:46]} 20. Nxe7 {[%emt 0:01:28]} Qxe7 {[%emt 0:00:09]} 21. f5 {[%emt 0:00:08]} Qc7 {[%emt 0:01:23]} 22. cxb4 {[%emt 0:01:54]} cxb4 {[%emt 0:00:29]} 23. Nh5 {[%emt 0:00:26]} Nxh5 {[%emt 0:00:42]} 24. Qxh5 {[%emt 0:00:11]} f6 {[%emt 0:01:01]} 25. Bb3 {[%emt 0:00:18]} Nb5 {[%emt 0:01:14]} 26. Be3 {[%emt 0:02:47]} Qe7 {[%emt 0:02:38]} 27. g4 {[%emt 0:03:23]} a5 {[%emt 0:01:51]} 28. h4 {[%emt 0:00:26]} a4 {[%emt 0:02:14]} 29. Bc4 {[%emt 0:00:10]} Nd4 {[%emt 0:00:43]} 30. Bxd4 {[%emt 0:00:21]} exd4 {[%emt 0:00:05]} 31. Rg1 {[%emt 0:00:51]} a3 {[%emt 0:01:08]} 32. b3 {[%emt 0:00:41]} Qe5 {[%emt 0:00:26]} 33. Raf1 {[%emt 0:01:01]} Rad8 {[%emt 0:00:22]} 34. g5 {[%emt 0:02:17]} Rd7 {[%emt 0:00:54]} 35. gxh6 {[%emt 0:00:20]} gxh6 {[%emt 0:00:05]} 36. Qxh6 {[%emt 0:00:19]} Qe7 {[%emt 0:01:29]} 37. Rg4 {[%emt 0:01:55]} Rb8 {[%emt 0:03:06]} 38. Rfg1 {[%emt 0:00:22]} Qf8 {[%emt 0:02:02]} 39. Rg8+ {[%emt 0:00:41]} Qxg8 {[%emt 0:00:10]} 40. Bxg8 {[%emt 0:00:11]} 1-0